[Event "51st Rilton Cup 2023-24"]
[Site "Stockholm"]
[Date "2023.12.28"]
[Round "2.2"]
[White "Prraneeth Vuppala"]
[Black "Kenneskog, Theodor"]
[Result "1-0"]
[ECO "C50"]
[WhiteElo "2515"]
[BlackElo "2364"]
[Annotator "ChessBase"]
[PlyCount "85"]
[EventDate "2023.12.27"]
[EventType "swiss"]
[EventCountry "SWE"]
[SourceTitle "playchess.com"]
[Source "ChessBase"]
[SourceQuality "1"]
[TimeControl "40/5400+30:1800+30"]

1. e4 {[%emt 0:02:44]} e5 {[%emt 0:00:28]} 2. Nf3 {[%emt 0:00:33]} Nc6 {[%emt 0:00:11]} 3. Bc4 {[%emt 0:01:15]} Nf6 {[%emt 0:00:16]} 4. d3 {[%emt 0:00:18]} Bc5 {[%emt 0:00:07]} 5. Nc3 {[%emt 0:00:44]} h6 {[%emt 0:04:58]} 6. h3 {[%emt 0:01:20]} d6 {[%emt 0:07:18]} 7. Na4 {[%emt 0:00:24]} Bb6 {[%emt 0:00:20]} 8. a3 {[%emt 0:00:14]} Be6 {[%emt 0:09:43]} 9. Bxe6 {[%emt 0:02:48]} fxe6 {[%emt 0:00:05]} 10. c3 {[%emt 0:00:20]} Ne7 {[%emt 0:03:43]} 11. O-O {[%emt 0:08:12]} Ng6 {[%emt 0:04:49]} 12. b4 {[%emt 0:13:11]} O-O {[%emt 0:01:54]} 13. c4 {[%emt 0:02:55]} Qe7 {[%emt 0:07:11]} 14. Ra2 {[%emt 0:02:25]} c6 {[%emt 0:12:20]} 15. Nxb6 {[%emt 0:04:30]} axb6 {[%emt 0:00:04]} 16. g3 {[%emt 0:02:46]} Qf7 {[%emt 0:03:54]} 17. Kg2 {[%emt 0:01:23]} d5 {[%emt 0:00:48]} 18. Qe2 {[%emt 0:03:06]} Rad8 {[%emt 0:10:16]} 19. Rc2 {[%emt 0:03:41]} Nh5 {[%emt 0:10:24]} 20. Nh2 {[%emt 0:02:52]} dxe4 {[%emt 0:00:58]} 21. dxe4 {[%emt 0:02:15]} Rd4 {[%emt 0:03:12]} 22. Kg1 {[%emt 0:03:17]} Nf6 {[%emt 0:02:13]} 23. Ng4 {[%emt 0:09:19]} Nxe4 {[%emt 0:05:16]} 24. Be3 {[%emt 0:06:48]} Rd7 {[%emt 0:02:56]} 25. Bxh6 {[%emt 0:02:31]} Qf5 {[%emt 0:03:12]} 26. Re1 {[%emt 0:06:28]} Nf6 {[%emt 0:03:00]} 27. Be3 {[%emt 0:02:21]} Rd3 {[%emt 0:01:08]} 28. Bxb6 {[%emt 0:04:26]} Rxa3 {[%emt 0:00:04]} 29. Rd2 {[%emt 0:01:09]} Rc3 {[%emt 0:03:03]} 30. Bc5 {[%emt 0:02:11]} Re8 {[%emt 0:00:24]} 31. Nxf6+ {[%emt 0:03:05]} Qxf6 {[%emt 0:00:05]} 32. Rd7 {[%emt 0:02:10]} Qf5 {[%emt 0:00:17]} 33. Kg2 {[%emt 0:03:17]} b5 {[%emt 0:01:38]} 34. cxb5 {[%emt 0:00:34]} cxb5 {[%emt 0:00:02]} 35. Qe4 {[%emt 0:00:24]} Qg5 {[%emt 0:01:10]} 36. Kh2 {[%emt 0:00:42]} Rc4 {[%emt 0:00:27]} 37. Qc6 {[%emt 0:00:42]} Qf5 {[%emt 0:00:34]} 38. Re2 {[%emt 0:01:30]} Nf4 {[%emt 0:00:26]} 39. g4 {[%emt 0:00:34]} Qh7 {[%emt 0:00:35]} 40. Re3 {[%emt 0:00:02]} Kh8 {[%emt 0:00:30]} 41. Rxg7 {[%emt 0:01:55]} Kxg7 {[%emt 0:00:56]} 42. Qxe8 {[%emt 0:05:09]} Kf6 {[%emt 0:08:32]} 43. Be7+ {[%emt 0:00:41]} 1-0

[Event "51st Rilton Cup 2023-24"]
[Site "Stockholm"]
[Date "2023.12.28"]
[Round "2.3"]
[White "Koykka, Pekka"]
[Black "Subelj, Jan"]
[Result "1-0"]
[ECO "B81"]
[WhiteElo "2351"]
[BlackElo "2512"]
[Annotator "ChessBase"]
[PlyCount "87"]
[EventDate "2023.12.27"]
[EventType "swiss"]
[EventCountry "SWE"]
[SourceTitle "playchess.com"]
[Source "ChessBase"]
[SourceQuality "1"]
[TimeControl "40/5400+30:1800+30"]

1. e4 {[%emt 0:00:07]} c5 {[%emt 0:00:30]} 2. Nf3 {[%emt 0:00:10]} e6 {[%emt 0:00:44]} 3. d4 {[%emt 0:00:30]} cxd4 {[%emt 0:00:10]} 4. Nxd4 {[%emt 0:00:05]} Nf6 {[%emt 0:00:53]} 5. Nc3 {[%emt 0:00:34]} d6 {[%emt 0:00:55]} 6. g4 {[%emt 0:00:24]} h6 {[%emt 0:00:41]} 7. Rg1 {[%emt 0:04:18]} e5 {[%emt 0:02:03]} 8. Bb5+ {[%emt 0:10:44]} Bd7 {[%emt 0:02:40]} 9. Bxd7+ {[%emt 0:00:48]} Nbxd7 {[%emt 0:05:52]} 10. Nf5 {[%emt 0:04:50]} Nc5 {[%emt 0:00:45]} 11. Qe2 {[%emt 0:31:25]} g6 {[%emt 0:03:03]} 12. Ng3 {[%emt 0:08:34]} Qb6 {[%emt 0:06:58]} 13. h4 {[%emt 0:12:04]} Ne6 {[%emt 0:03:58]} 14. g5 {[%emt 0:04:04]} hxg5 {[%emt 0:01:22]} 15. hxg5 {[%emt 0:00:15]} Nd7 {[%emt 0:01:32]} 16. Nd5 {[%emt 0:01:50]} Qc6 {[%emt 0:04:46]} 17. Be3 {[%emt 0:01:26]} Be7 {[%emt 0:00:45]} 18. Qd2 {[%emt 0:09:10]} Nb6 {[%emt 0:02:52]} 19. b3 {[%emt 0:00:16]} Rc8 {[%emt 0:03:34]} 20. c4 {[%emt 0:00:27]} Nc5 {[%emt 0:02:33]} 21. Nc3 {[%emt 0:05:25]} Nbd7 {[%emt 0:01:08]} 22. O-O-O {[%emt 0:01:17]} b5 {[%emt 0:00:41]} 23. cxb5 {[%emt 0:01:21]} Nxb3+ {[%emt 0:01:02]} 24. axb3 {[%emt 0:00:02]} Qxc3+ {[%emt 0:00:09]} 25. Qxc3 {[%emt 0:00:07]} Rxc3+ {[%emt 0:00:03]} 26. Kb2 {[%emt 0:00:09]} Rc7 {[%emt 0:00:38]} 27. Ne2 {[%emt 0:02:39]} O-O {[%emt 0:03:26]} 28. Nc3 {[%emt 0:00:17]} Rb7 {[%emt 0:01:06]} 29. Ra1 {[%emt 0:01:07]} Nc5 {[%emt 0:01:43]} 30. b4 {[%emt 0:00:28]} Nd3+ {[%emt 0:00:45]} 31. Kb3 {[%emt 0:00:09]} Ra8 {[%emt 0:01:23]} 32. Ra6 {[%emt 0:00:20]} Kf8 {[%emt 0:02:19]} 33. Rga1 {[%emt 0:00:42]} d5 {[%emt 0:00:36]} 34. Nxd5 {[%emt 0:00:30]} Nxb4 {[%emt 0:00:35]} 35. Rxa7 {[%emt 0:00:31]} Raxa7 {[%emt 0:02:54]} 36. Rxa7 {[%emt 0:00:01]} Nc6 {[%emt 0:00:51]} 37. Rxb7 {[%emt 0:00:50]} Na5+ {[%emt 0:00:06]} 38. Ka4 {[%emt 0:00:11]} Nxb7 {[%emt 0:00:03]} 39. b6 {[%emt 0:00:29]} Ke8 {[%emt 0:00:59]} 40. Kb5 {[%emt 0:00:29]} Ba3 {[%emt 0:02:25]} 41. Kc6 {[%emt 0:04:01]} Nd8+ {[%emt 0:01:11]} 42. Kc7 {[%emt 0:00:57]} Ne6+ {[%emt 0:00:07]} 43. Kc8 {[%emt 0:01:03]} Bd6 {[%emt 0:00:16]} 44. b7 {[%emt 0:04:03]} 1-0

[Event "51st Rilton Cup 2023-24"]
[Site "Stockholm"]
[Date "2023.12.28"]
[Round "2.4"]
[White "Raja Rithvik R"]
[Black "Citak, Selim"]
[Result "1-0"]
[ECO "E04"]
[WhiteElo "2500"]
[BlackElo "2350"]
[Annotator "ChessBase"]
[PlyCount "35"]
[EventDate "2023.12.27"]
[EventType "swiss"]
[EventCountry "SWE"]
[SourceTitle "playchess.com"]
[Source "ChessBase"]
[SourceQuality "1"]
[TimeControl "40/5400+30:1800+30"]

1. d4 {[%emt 0:01:57]} d5 {[%emt 0:00:12]} 2. c4 {[%emt 0:00:05]} e6 {[%emt 0:00:11]} 3. Nf3 {[%emt 0:00:05]} Nf6 {[%emt 0:00:25]} 4. g3 {[%emt 0:00:06]} dxc4 {[%emt 0:00:32]} 5. Bg2 {[%emt 0:00:05]} a6 {[%emt 0:00:47]} 6. Ne5 {[%emt 0:01:16]} Bb4+ {[%emt 0:00:36]} 7. Nc3 {[%emt 0:00:07]} Nd5 {[%emt 0:00:42]} 8. O-O {[%emt 0:00:08]} Nxc3 {[%emt 0:11:32]} 9. bxc3 {[%emt 0:00:25]} Bxc3 {[%emt 0:02:31]} 10. Rb1 {[%emt 0:00:06]} Bxd4 {[%emt 0:17:12]} 11. Nxc4 {[%emt 0:00:38]} O-O {[%emt 0:05:49]} 12. Ba3 {[%emt 0:07:20]} Re8 {[%emt 0:00:44]} 13. Qc2 {[%emt 0:00:08]} Nd7 {[%emt 0:08:27]} 14. Rfd1 {[%emt 0:00:57]} Bf6 {[%emt 0:02:18]} 15. Rxb7 {[%emt 0:01:11]} Be7 {[%emt 0:19:53]} 16. Bxe7 {[%emt 0:15:09]} Rxe7 {[%emt 0:00:31]} 17. Rb3 {[%emt 0:03:01]} c6 {[%emt 0:00:48]} 18. Ne5 {[%emt 0:00:39]} 1-0

[Event "51st Rilton Cup 2023-24"]
[Site "Stockholm"]
[Date "2023.12.28"]
[Round "2.5"]
[White "Brilej, Jaka"]
[Black "Parkhov, Yair"]
[Result "0-1"]
[ECO "B22"]
[WhiteElo "2348"]
[BlackElo "2495"]
[Annotator "ChessBase"]
[PlyCount "164"]
[EventDate "2023.12.27"]
[EventType "swiss"]
[EventCountry "SWE"]
[SourceTitle "playchess.com"]
[Source "ChessBase"]
[SourceQuality "1"]
[TimeControl "40/5400+30:1800+30"]

1. e4 {[%emt 0:00:03]} c5 {[%emt 0:04:23]} 2. c3 {[%emt 0:00:08]} d5 {[%emt 0:00:34]} 3. exd5 {[%emt 0:00:10]} Qxd5 {[%emt 0:00:08]} 4. d4 {[%emt 0:00:29]} e6 {[%emt 0:00:47]} 5. Nf3 {[%emt 0:03:25]} Nf6 {[%emt 0:00:04]} 6. Na3 {[%emt 0:07:20]} a6 {[%emt 0:00:07]} 7. Nc4 {[%emt 0:05:48]} Nbd7 {[%emt 0:00:05]} 8. Be2 {[%emt 0:04:08]} b5 {[%emt 0:00:13]} 9. Ne3 {[%emt 0:00:10]} Qc6 {[%emt 0:00:09]} 10. dxc5 {[%emt 0:04:30]} Qxc5 {[%emt 0:04:18]} 11. O-O {[%emt 0:02:21]} Bb7 {[%emt 0:00:33]} 12. a4 {[%emt 0:01:20]} Be7 {[%emt 0:01:28]} 13. axb5 {[%emt 0:13:36]} axb5 {[%emt 0:00:05]} 14. Rxa8+ {[%emt 0:00:04]} Bxa8 {[%emt 0:00:05]} 15. Nc2 {[%emt 0:00:24]} O-O {[%emt 0:00:24]} 16. Be3 {[%emt 0:00:53]} Qc7 {[%emt 0:00:13]} 17. h3 {[%emt 0:05:34]} Rd8 {[%emt 0:08:49]} 18. Qc1 {[%emt 0:07:15]} Ne5 {[%emt 0:08:17]} 19. Ncd4 {[%emt 0:01:52]} Nxf3+ {[%emt 0:01:42]} 20. Bxf3 {[%emt 0:03:17]} Bxf3 {[%emt 0:00:21]} 21. Nxf3 {[%emt 0:00:07]} Nd5 {[%emt 0:01:52]} 22. Rd1 {[%emt 0:04:33]} b4 {[%emt 0:06:13]} 23. cxb4 {[%emt 0:03:25]} Qxc1 {[%emt 0:01:02]} 24. Bxc1 {[%emt 0:01:07]} Bxb4 {[%emt 0:01:26]} 25. Ng5 {[%emt 0:13:43]} Rc8 {[%emt 0:06:58]} 26. Bd2 {[%emt 0:00:27]} Be7 {[%emt 0:05:04]} 27. Rc1 {[%emt 0:07:22]} Rb8 {[%emt 0:00:28]} 28. Rc2 {[%emt 0:01:13]} Bf6 {[%emt 0:01:12]} 29. Bc1 {[%emt 0:01:38]} Nb4 {[%emt 0:00:55]} 30. Rc4 {[%emt 0:02:01]} Nd3 {[%emt 0:04:38]} 31. Ne4 {[%emt 0:00:06]} Be5 {[%emt 0:08:05]} 32. b3 {[%emt 0:02:53]} f6 {[%emt 0:05:03]} 33. Nc5 {[%emt 0:02:31]} Nxc5 {[%emt 0:00:11]} 34. Rxc5 {[%emt 0:00:03]} Rxb3 {[%emt 0:00:11]} 35. Be3 {[%emt 0:00:44]} Kf7 {[%emt 0:06:11]} 36. g4 {[%emt 0:00:28]} h6 {[%emt 0:04:16]} 37. Ra5 {[%emt 0:00:45]} Bb8 {[%emt 0:03:39]} 38. Kg2 {[%emt 0:00:31]} Rb7 {[%emt 0:03:50]} 39. Kf3 {[%emt 0:00:47]} Rd7 {[%emt 0:00:27]} 40. Ke4 {[%emt 0:01:25]} g5 {[%emt 0:05:18]} 41. Ra8 {[%emt 0:12:17]} Rb7 {[%emt 0:01:15]} 42. Ra6 {[%emt 0:00:06]} Rb4+ {[%emt 0:03:27]} 43. Kf3 {[%emt 0:00:08]} Bf4 {[%emt 0:03:09]} 44. Bc5 {[%emt 0:01:20]} Rb3+ {[%emt 0:00:30]} 45. Kg2 {[%emt 0:00:07]} Rc3 {[%emt 0:05:00]} 46. Ra7+ {[%emt 0:02:38]} Kg6 {[%emt 0:00:09]} 47. Bf8 {[%emt 0:06:39]} Bc7 {[%emt 0:00:14]} 48. Ra6 {[%emt 0:02:05]} Rc2 {[%emt 0:02:27]} 49. Bb4 {[%emt 0:01:16]} Rc4 {[%emt 0:03:57]} 50. Ba3 {[%emt 0:00:43]} Kf7 {[%emt 0:01:34]} 51. Ra7 {[%emt 0:00:07]} Ke8 {[%emt 0:00:50]} 52. Ra8+ {[%emt 0:01:01]} Kd7 {[%emt 0:01:27]} 53. Rf8 {[%emt 0:00:46]} Be5 {[%emt 0:00:53]} 54. Rf7+ {[%emt 0:01:08]} Kc6 {[%emt 0:02:26]} 55. Be7 {[%emt 0:02:46]} Rf4 {[%emt 0:00:35]} 56. Bf8 {[%emt 0:00:23]} Bd4 {[%emt 0:08:02]} 57. f3 {[%emt 0:00:05]} Be5 {[%emt 0:00:05]} 58. Ra7 {[%emt 0:01:23]} Rd4 {[%emt 0:00:27]} 59. Ra2 {[%emt 0:00:06]} Rd8 {[%emt 0:00:16]} 60. Be7 {[%emt 0:00:58]} Rb8 {[%emt 0:01:38]} 61. Rd2 {[%emt 0:00:49]} Re8 {[%emt 0:02:21]} 62. Bd8 {[%emt 0:01:17]} Rh8 {[%emt 0:02:25]} 63. Rc2+ {[%emt 0:02:01]} Kd5 {[%emt 0:03:51]} 64. Rd2+ {[%emt 0:00:31]} Kc4 {[%emt 0:01:04]} 65. Bb6 {[%emt 0:00:06]} h5 {[%emt 0:01:43]} 66. Bg1 {[%emt 0:00:06]} h4 {[%emt 0:00:19]} 67. Rc2+ {[%emt 0:00:42]} Bc3 {[%emt 0:00:55]} 68. Re2 {[%emt 0:00:16]} e5 {[%emt 0:00:42]} 69. Bf2 {[%emt 0:00:30]} Ra8 {[%emt 0:00:31]} 70. Kf1 {[%emt 0:01:06]} Ra1+ {[%emt 0:00:07]} 71. Kg2 {[%emt 0:00:05]} Bd4 {[%emt 0:00:28]} 72. Bxd4 {[%emt 0:03:15]} exd4 {[%emt 0:00:08]} 73. Re6 {[%emt 0:00:04]} d3 {[%emt 0:00:31]} 74. Rd6 {[%emt 0:00:16]} Kc3 {[%emt 0:00:20]} 75. Rc6+ {[%emt 0:00:06]} Kb3 {[%emt 0:00:38]} 76. Rd6 {[%emt 0:00:24]} Ra2+ {[%emt 0:01:41]} 77. Kf1 {[%emt 0:00:06]} Kc3 {[%emt 0:00:08]} 78. Rc6+ {[%emt 0:00:06]} Kd4 {[%emt 0:00:14]} 79. Re6 {[%emt 0:00:13]} Ra1+ {[%emt 0:00:45]} 80. Kf2 {[%emt 0:00:04]} d2 {[%emt 0:00:18]} 81. Rd6+ {[%emt 0:00:05]} Kc3 {[%emt 0:00:05]} 82. Rc6+ {[%emt 0:00:04]} Kb4 {[%emt 0:00:06]} 0-1

[Event "51st Rilton Cup 2023-24"]
[Site "Stockholm"]
[Date "2023.12.28"]
[Round "2.6"]
[White "Krishnan, Ritvik"]
[Black "Bailet, Pierre"]
[Result "1/2-1/2"]
[ECO "C54"]
[WhiteElo "2346"]
[BlackElo "2492"]
[Annotator "ChessBase"]
[PlyCount "46"]
[EventDate "2023.12.27"]
[EventType "swiss"]
[EventCountry "SWE"]
[SourceTitle "playchess.com"]
[Source "ChessBase"]
[SourceQuality "1"]
[TimeControl "40/5400+30:1800+30"]

1. e4 {[%emt 0:00:06]} e5 {[%emt 0:00:17]} 2. Nf3 {[%emt 0:00:05]} Nc6 {[%emt 0:00:04]} 3. Bc4 {[%emt 0:00:07]} Bc5 {[%emt 0:00:27]} 4. c3 {[%emt 0:00:08]} Nf6 {[%emt 0:00:08]} 5. d3 {[%emt 0:00:04]} d6 {[%emt 0:00:41]} 6. O-O {[%emt 0:00:09]} a6 {[%emt 0:01:03]} 7. a4 {[%emt 0:00:09]} Ba7 {[%emt 0:00:16]} 8. Re1 {[%emt 0:00:12]} h6 {[%emt 0:02:08]} 9. Nbd2 {[%emt 0:00:53]} O-O {[%emt 0:00:31]} 10. h3 {[%emt 0:00:08]} Nh5 {[%emt 0:05:33]} 11. Nf1 {[%emt 0:13:20]} Qf6 {[%emt 0:05:34]} 12. Be3 {[%emt 0:07:23]} Nf4 {[%emt 0:15:21]} 13. d4 {[%emt 0:08:14]} g5 {[%emt 0:05:06]} 14. dxe5 {[%emt 0:11:00]} dxe5 {[%emt 0:01:30]} 15. Bxa7 {[%emt 0:01:03]} Rd8 {[%emt 0:05:42]} 16. Bd4 {[%emt 0:02:58]} exd4 {[%emt 0:04:24]} 17. cxd4 {[%emt 0:10:34]} Bxh3 {[%emt 0:36:18]} 18. e5 {[%emt 0:08:18]} Qg6 {[%emt 0:00:05]} 19. gxh3 {[%emt 0:01:19]} Nxh3+ {[%emt 0:01:19]} 20. Kg2 {[%emt 0:09:34]} Nf4+ {[%emt 0:00:29]} 21. Kg1 {[%emt 0:04:31]} Nh3+ {[%emt 0:06:40]} 22. Kg2 {[%emt 0:00:01]} Nf4+ {[%emt 0:00:11]} 23. Kg1 {[%emt 0:00:04]} Nh3+ {[%emt 0:01:10]} 1/2-1/2

[Event "51st Rilton Cup 2023-24"]
[Site "Stockholm"]
[Date "2023.12.28"]
[Round "2.7"]
[White "Sivuk, Vitaly"]
[Black "Hagner, Bennet"]
[Result "1/2-1/2"]
[ECO "E00"]
[WhiteElo "2490"]
[BlackElo "2348"]
[Annotator "ChessBase"]
[PlyCount "72"]
[EventDate "2023.12.27"]
[EventType "swiss"]
[EventCountry "SWE"]
[SourceTitle "playchess.com"]
[Source "ChessBase"]
[SourceQuality "1"]
[TimeControl "40/5400+30:1800+30"]

1. d4 {[%emt 0:09:07]} Nf6 {[%emt 0:00:06]} 2. c4 {[%emt 0:00:07]} e6 {[%emt 0:00:04]} 3. Bg5 {[%emt 0:00:09]} h6 {[%emt 0:05:00]} 4. Bh4 {[%emt 0:00:12]} Bb4+ {[%emt 0:05:15]} 5. Nd2 {[%emt 0:00:10]} g5 {[%emt 0:05:04]} 6. Bg3 {[%emt 0:00:07]} Ne4 {[%emt 0:00:17]} 7. Ngf3 {[%emt 0:00:05]} h5 {[%emt 0:02:50]} 8. Qc2 {[%emt 0:03:56]} Bxd2+ {[%emt 0:12:08]} 9. Nxd2 {[%emt 0:00:17]} Nxg3 {[%emt 0:00:09]} 10. hxg3 {[%emt 0:00:34]} Nc6 {[%emt 0:02:55]} 11. d5 {[%emt 0:01:49]} Ne5 {[%emt 0:01:41]} 12. Qc3 {[%emt 0:00:56]} d6 {[%emt 0:03:36]} 13. f4 {[%emt 0:02:20]} Ng6 {[%emt 0:00:32]} 14. e3 {[%emt 0:16:04]} e5 {[%emt 0:05:27]} 15. Bd3 {[%emt 0:03:02]} gxf4 {[%emt 0:09:15]} 16. gxf4 {[%emt 0:00:47]} Qf6 {[%emt 0:04:59]} 17. O-O-O {[%emt 0:16:39]} Bf5 {[%emt 0:00:50]} 18. Rdf1 {[%emt 0:15:03]} Bxd3 {[%emt 0:00:55]} 19. Qxd3 {[%emt 0:02:33]} exf4 {[%emt 0:03:21]} 20. exf4 {[%emt 0:00:11]} O-O-O {[%emt 0:00:43]} 21. Ne4 {[%emt 0:00:30]} Qg7 {[%emt 0:03:51]} 22. Kb1 {[%emt 0:04:25]} Kb8 {[%emt 0:02:15]} 23. Rf2 {[%emt 0:00:30]} Ne7 {[%emt 0:04:59]} 24. Ng5 {[%emt 0:01:08]} Rde8 {[%emt 0:03:35]} 25. Rc1 {[%emt 0:09:19]} Qf6 {[%emt 0:07:16]} 26. Rf3 {[%emt 0:02:53]} Nf5 {[%emt 0:01:09]} 27. a3 {[%emt 0:01:58]} Re7 {[%emt 0:03:43]} 28. Qc3 {[%emt 0:06:20]} Qxc3 {[%emt 0:00:31]} 29. Rfxc3 {[%emt 0:00:08]} Rg8 {[%emt 0:04:14]} 30. c5 {[%emt 0:00:46]} dxc5 {[%emt 0:01:12]} 31. Rxc5 {[%emt 0:00:04]} Nd4 {[%emt 0:02:55]} 32. Rd1 {[%emt 0:01:27]} f6 {[%emt 0:01:33]} 33. Rxd4 {[%emt 0:01:23]} fxg5 {[%emt 0:00:06]} 34. fxg5 {[%emt 0:00:26]} b6 {[%emt 0:01:43]} 35. Rc2 {[%emt 0:00:16]} Rxg5 {[%emt 0:00:09]} 36. d6 {[%emt 0:00:11]} cxd6 {[%emt 0:00:17]} 1/2-1/2

[Event "51st Rilton Cup 2023-24"]
[Site "Stockholm"]
[Date "2023.12.28"]
[Round "2.8"]
[White "Costa, Leonardo"]
[Black "Lindberg, Bengt"]
[Result "1-0"]
[ECO "C84"]
[WhiteElo "2472"]
[BlackElo "2344"]
[Annotator "ChessBase"]
[PlyCount "121"]
[EventDate "2023.12.27"]
[EventType "swiss"]
[EventCountry "SWE"]
[SourceTitle "playchess.com"]
[Source "ChessBase"]
[SourceQuality "1"]
[TimeControl "40/5400+30:1800+30"]

1. e4 {[%emt 0:00:03]} e5 {[%emt 0:00:23]} 2. Nf3 {[%emt 0:00:04]} Nc6 {[%emt 0:00:10]} 3. Bb5 {[%emt 0:00:05]} a6 {[%emt 0:00:18]} 4. Ba4 {[%emt 0:00:03]} Nf6 {[%emt 0:00:13]} 5. O-O {[%emt 0:00:04]} Be7 {[%emt 0:00:15]} 6. d3 {[%emt 0:00:06]} d6 {[%emt 0:01:08]} 7. c3 {[%emt 0:01:28]} O-O {[%emt 0:00:34]} 8. Re1 {[%emt 0:03:24]} b5 {[%emt 0:00:39]} 9. Bc2 {[%emt 0:03:06]} Re8 {[%emt 0:01:42]} 10. h3 {[%emt 0:02:32]} Bf8 {[%emt 0:04:46]} 11. a4 {[%emt 0:01:57]} Rb8 {[%emt 0:04:15]} 12. Nbd2 {[%emt 0:14:45]} h6 {[%emt 0:09:08]} 13. axb5 {[%emt 0:10:30]} axb5 {[%emt 0:00:08]} 14. Nf1 {[%emt 0:00:02]} Bd7 {[%emt 0:06:14]} 15. Ng3 {[%emt 0:00:40]} Ra8 {[%emt 0:02:25]} 16. Rxa8 {[%emt 0:01:19]} Qxa8 {[%emt 0:00:04]} 17. d4 {[%emt 0:02:46]} g6 {[%emt 0:10:53]} 18. Be3 {[%emt 0:02:00]} Qa2 {[%emt 0:12:01]} 19. Bb3 {[%emt 0:14:25]} Qa8 {[%emt 0:07:52]} 20. Qc1 {[%emt 0:01:55]} Na5 {[%emt 0:04:29]} 21. Ba2 {[%emt 0:02:18]} Nb7 {[%emt 0:00:07]} 22. Bb1 {[%emt 0:01:13]} Kh7 {[%emt 0:00:11]} 23. b4 {[%emt 0:00:33]} Nd8 {[%emt 0:04:36]} 24. Re2 {[%emt 0:03:32]} Bc6 {[%emt 0:03:35]} 25. Ra2 {[%emt 0:00:49]} Qb8 {[%emt 0:00:18]} 26. Nd2 {[%emt 0:02:12]} Ba8 {[%emt 0:08:59]} 27. Bd3 {[%emt 0:02:25]} c6 {[%emt 0:02:02]} 28. Nf3 {[%emt 0:09:05]} Bb7 {[%emt 0:04:11]} 29. Bc2 {[%emt 0:01:15]} Ne6 {[%emt 0:03:12]} 30. Bb3 {[%emt 0:00:22]} Bg7 {[%emt 0:04:05]} 31. Ra5 {[%emt 0:02:12]} Re7 {[%emt 0:01:26]} 32. Qd2 {[%emt 0:00:38]} Bf8 {[%emt 0:00:59]} 33. Qa2 {[%emt 0:04:02]} Nd7 {[%emt 0:03:38]} 34. Ra7 {[%emt 0:02:05]} Nd8 {[%emt 0:00:25]} 35. h4 {[%emt 0:02:10]} Bg7 {[%emt 0:01:19]} 36. h5 {[%emt 0:00:18]} Nf6 {[%emt 0:00:43]} 37. dxe5 {[%emt 0:02:02]} dxe5 {[%emt 0:00:02]} 38. Qa5 {[%emt 0:01:31]} Nd7 {[%emt 0:01:14]} 39. Qa2 {[%emt 0:01:24]} Bf6 {[%emt 0:00:47]} 40. Nh2 {[%emt 0:08:09]} Bg7 {[%emt 0:00:03]} 41. Ng4 {[%emt 0:04:07]} Nf6 {[%emt 0:08:40]} 42. Nxf6+ {[%emt 0:03:20]} Bxf6 {[%emt 0:00:02]} 43. Nf1 {[%emt 0:09:17]} Qc8 {[%emt 0:01:32]} 44. Bc5 {[%emt 0:00:58]} Rd7 {[%emt 0:01:17]} 45. Ne3 {[%emt 0:00:03]} Bg5 {[%emt 0:05:58]} 46. Qe2 {[%emt 0:02:21]} gxh5 {[%emt 0:01:41]} 47. Nf5 {[%emt 0:03:21]} Rd2 {[%emt 0:04:59]} 48. Qxh5 {[%emt 0:00:38]} Qd7 {[%emt 0:05:08]} 49. Nxh6 {[%emt 0:01:17]} Bxh6 {[%emt 0:01:41]} 50. Bf8 {[%emt 0:00:02]} Rd6 {[%emt 0:01:40]} 51. Bxd6 {[%emt 0:04:43]} Qxd6 {[%emt 0:00:01]} 52. Bxf7 {[%emt 0:01:59]} Kg7 {[%emt 0:01:06]} 53. Bb3 {[%emt 0:00:21]} Qe7 {[%emt 0:01:53]} 54. g3 {[%emt 0:01:13]} Bg5 {[%emt 0:01:33]} 55. Qg4 {[%emt 0:00:31]} Qf6 {[%emt 0:00:46]} 56. Kg2 {[%emt 0:01:22]} Kf8 {[%emt 0:00:17]} 57. Qd7 {[%emt 0:01:42]} Qe7 {[%emt 0:00:15]} 58. Qh3 {[%emt 0:00:15]} Qg7 {[%emt 0:00:46]} 59. Be6 {[%emt 0:00:35]} Nxe6 {[%emt 0:00:44]} 60. Qxe6 {[%emt 0:00:05]} c5 {[%emt 0:00:28]} 61. Qd6+ {[%emt 0:01:35]} 1-0

[Event "51st Rilton Cup 2023-24"]
[Site "Stockholm"]
[Date "2023.12.28"]
[Round "2.9"]
[White "Chasin, Nico"]
[Black "Dotzer, Lukas"]
[Result "1-0"]
[ECO "E04"]
[WhiteElo "2444"]
[BlackElo "2338"]
[Annotator "ChessBase"]
[PlyCount "108"]
[EventDate "2023.12.27"]
[EventType "swiss"]
[EventCountry "SWE"]
[SourceTitle "playchess.com"]
[Source "ChessBase"]
[SourceQuality "1"]
[TimeControl "40/5400+30:1800+30"]

1. c4 {[%emt 0:13:39]} Nf6 {[%emt 0:00:04]} 2. g3 {[%emt 0:00:24]} e6 {[%emt 0:00:08]} 3. Bg2 {[%emt 0:00:05]} d5 {[%emt 0:00:19]} 4. d4 {[%emt 0:00:17]} dxc4 {[%emt 0:00:16]} 5. Nf3 {[%emt 0:00:29]} Bb4+ {[%emt 0:00:20]} 6. Bd2 {[%emt 0:00:07]} a5 {[%emt 0:00:19]} 7. Qc2 {[%emt 0:00:53]} c5 {[%emt 0:02:23]} 8. a3 {[%emt 0:04:48]} Bxd2+ {[%emt 0:00:24]} 9. Nbxd2 {[%emt 0:00:03]} cxd4 {[%emt 0:02:41]} 10. Nxc4 {[%emt 0:00:08]} O-O {[%emt 0:04:12]} 11. Rd1 {[%emt 0:05:16]} Nc6 {[%emt 0:02:55]} 12. O-O {[%emt 0:00:08]} Ra6 {[%emt 0:04:40]} 13. e3 {[%emt 0:02:15]} b5 {[%emt 0:17:29]} 14. Nxd4 {[%emt 0:02:04]} Nxd4 {[%emt 0:02:56]} 15. Rxd4 {[%emt 0:00:07]} Qc7 {[%emt 0:05:55]} 16. Rc1 {[%emt 0:00:08]} Qb8 {[%emt 0:12:37]} 17. Ne5 {[%emt 0:03:10]} Bb7 {[%emt 0:06:20]} 18. Bxb7 {[%emt 0:02:15]} Qxb7 {[%emt 0:04:01]} 19. Qc7 {[%emt 0:00:10]} Ra7 {[%emt 0:03:18]} 20. Qd6 {[%emt 0:00:02]} h5 {[%emt 0:06:37]} 21. Rc6 {[%emt 0:02:59]} Qa8 {[%emt 0:02:53]} 22. h3 {[%emt 0:04:51]} Rb8 {[%emt 0:06:33]} 23. g4 {[%emt 0:04:51]} hxg4 {[%emt 0:01:40]} 24. hxg4 {[%emt 0:00:08]} Nd5 {[%emt 0:01:42]} 25. e4 {[%emt 0:04:08]} Nf4 {[%emt 0:01:52]} 26. Kh2 {[%emt 0:01:53]} Rc8 {[%emt 0:04:59]} 27. Rxc8+ {[%emt 0:05:18]} Qxc8 {[%emt 0:00:17]} 28. Nc6 {[%emt 0:00:22]} Rc7 {[%emt 0:00:26]} 29. Ne7+ {[%emt 0:00:52]} Rxe7 {[%emt 0:00:07]} 30. Qxe7 {[%emt 0:00:03]} Qc2 {[%emt 0:01:33]} 31. Qd8+ {[%emt 0:00:20]} Kh7 {[%emt 0:00:07]} 32. Qh4+ {[%emt 0:00:03]} Kg6 {[%emt 0:00:08]} 33. e5 {[%emt 0:00:07]} Qc1 {[%emt 0:01:16]} 34. Qg3 {[%emt 0:02:48]} Kg5 {[%emt 0:01:19]} 35. Qe3 {[%emt 0:01:04]} Qxe3 {[%emt 0:00:09]} 36. fxe3 {[%emt 0:00:02]} Nd5 {[%emt 0:03:18]} 37. Kg3 {[%emt 0:00:31]} Nxe3 {[%emt 0:00:44]} 38. Rd7 {[%emt 0:00:02]} Nxg4 {[%emt 0:01:15]} 39. Ra7 {[%emt 0:02:11]} a4 {[%emt 0:01:10]} 40. Rxf7 {[%emt 0:00:44]} g6 {[%emt 0:00:26]} 41. Rb7 {[%emt 0:30:18]} Nxe5 {[%emt 0:30:22]} 42. Rxb5 {[%emt 0:00:07]} Kf6 {[%emt 0:00:00]} 43. Kf4 {[%emt 0:00:00]} g5+ {[%emt 0:00:00]} 44. Ke3 {[%emt 0:00:00]} Nc4+ {[%emt 0:00:00]} 45. Kd3 {[%emt 0:00:00]} Ne5+ {[%emt 0:00:00]} 46. Kd4 {[%emt 0:00:00]} Nf3+ {[%emt 0:00:00]} 47. Ke3 {[%emt 0:00:00]} Ne5 {[%emt 0:00:00]} 48. Rb4 {[%emt 0:00:00]} g4 {[%emt 0:00:00]} 49. Rxa4 {[%emt 0:00:00]} g3 {[%emt 0:00:00]} 50. b3 {[%emt 0:00:00]} Kg5 {[%emt 0:00:00]} 51. Ra5 {[%emt 0:00:00]} g2 {[%emt 0:00:00]} 52. Rxe5+ {[%emt 0:00:00]} Kf6 {[%emt 0:00:00]} 53. Rxe6+ {[%emt 0:00:00]} Kxe6 {[%emt 0:00:00]} 54. Kf2 {[%emt 0:00:00]} Kd5 {[%emt 0:00:08]} 1-0